bitfinex-derivatives/quotes_ETHF0:USTF0_20220106
["timestamp","ask_amount","ask_price","bid_price","bid_amount"]
[1641429831368,0.15969535,3540.9,3540.1,2.04660939]
[1641429831767,0.15969535,3541.0,3540.1,2.04660939]
[1641429832067,1.4999,3540.2,3538.3,37.29652178]
[1641429832267,1.4999,3540.0,3538.3,31.6441]
[1641429832468,0.15969535,3540.1,3538.5,1.5]
[1641429832666,0.15969535,3539.9,3538.5,1.5]
[1641429832867,0.15969535,3540.0,3538.1,64.2731]
[1641429833068,0.15969535,3539.8,3538.1,64.2731]
[1641429833266,0.15969535,3539.9,3538.1,64.2731]
[1641429833767,0.15969535,3539.8,3539.6,2.00479]
[1641429834169,5.80841445,3540.7,3539.7,0.229991]
[1641429834370,0.15969535,3539.7,3539.6,2.00479]
[1641429834569,0.15969535,3540.6,3539.6,2.00479]
[1641429834767,5.6487191,3540.7,3539.6,2.00479]
[1641429834768,0.15969535,3539.7,3539.6,2.00479]
[1641429835168,12.34969535,3540.6,3539.6,2.00479]
[1641429835368,0.15969535,3539.7,3539.6,2.367175]
[1641429835568,0.15969535,3540.5,3539.6,2.367175]
[1641429835768,0.15969535,3539.7,3539.6,4.371965]
[1641429835969,0.15969535,3540.4,3539.6,4.141974]
[1641429836169,0.15969535,3539.7,3539.6,4.141974]
[1641429836367,0.15969535,3540.3,3539.6,4.371965]
[1641429836569,0.15969535,3539.7,3539.6,4.141974]
[1641429836771,0.15969535,3540.2,3539.6,4.141974]
[1641429837370,0.15969535,3540.5,3539.6,4.141974]
[1641429837571,0.15969535,3540.1,3539.6,4.141974]
[1641429837971,0.15969535,3540.4,3539.6,4.141974]
[1641429838172,0.15969535,3540.0,3539.6,4.141974]
[1641429838373,0.15969535,3540.3,3539.6,4.00958]
[1641429838573,0.15969535,3539.9,3539.6,4.141974]
[1641429838773,0.15969535,3540.2,3539.7,0.229991]
[1641429838976,0.15969535,3540.2,3539.6,4.141974]
[1641429839176,0.15969535,3540.5,3539.6,4.141974]
[1641429839378,0.15969535,3540.1,3539.6,4.141974]
[1641429839580,0.15969535,3540.4,3539.6,4.141974]
[1641429839776,0.15969535,3540.0,3539.6,4.141974]
[1641429839977,0.15969535,3540.3,3539.6,4.141974]
[1641429840175,0.15969535,3539.9,3539.6,4.141974]
[1641429840378,0.15969535,3540.2,3539.7,0.229991]
[1641429840578,0.15969535,3539.8,3539.7,0.229991]
[1641429840979,0.15969535,3540.1,3539.7,0.229991]
[1641429841281,0.15969535,3540.0,3539.7,0.229991]
[1641429841478,0.15969535,3540.0,3539.8,0.132394]
[1641429841679,0.15969535,3540.5,3539.9,0.229991]
[1641429841880,5.6487191,3540.7,3539.9,0.229991]
[1641429842077,0.15968608,3540.4,3540.0,0.132394]
[1641429842278,0.15968608,3540.6,3540.0,0.132394]
[1641429843482,9.63260895,3541.3,3540.0,0.132394]
[1641429843483,0.15968608,3541.1,3540.1,0.8496683]
[1641429843684,0.15968608,3540.5,3540.1,0.8496683]
[1641429843883,0.15968608,3540.5,3540.4,2.00479]
[1641429844084,0.15968608,3541.1,3540.4,2.234781]
[1641429844284,0.15968608,3540.5,3540.4,2.234781]
[1641429844587,0.15968608,3541.0,3540.4,2.234781]
[1641429844785,0.15968608,3540.5,3540.4,2.00479]
[1641429844986,0.15968608,3540.9,3540.4,2.00479]
[1641429845187,0.15968608,3540.5,3540.4,2.00479]
[1641429845385,1.4999,3541.1,3540.4,2.00479]
[1641429845386,0.15968608,3540.8,3540.4,2.00479]
[1641429845787,0.15968608,3541.0,3540.5,2.00479]
[1641429845987,0.15968608,3540.7,3540.5,2.00479]
[1641429846187,0.15968608,3540.7,3540.6,0.229991]
[1641429846387,0.15968608,3540.9,3540.6,0.229991]
[1641429846687,8.13270895,3541.3,3540.6,0.229991]
[1641429846688,0.15968608,3541.2,3540.6,0.229991]
[1641429846888,0.15968608,3540.8,3540.5,1.9131761]
[1641429847089,0.229991,3540.7,3540.5,1.9131761]
[1641429847488,0.15968608,3540.6,3540.5,1.9897851]
[1641429847689,0.132394,3541.2,3540.8,0.84031392]
[1641429848788,0.15968197,3541.1,3540.8,0.84031392]
[1641429848989,0.229991,3541.0,3540.8,0.84031392]
[1641429849191,0.15968197,3541.1,3540.9,0.076609]
[1641429849389,8.13270895,3541.3,3540.9,0.076609]
[1641429849591,9.76500295,3541.3,3540.8,0.97270792]
[1641429849790,9.76500295,3541.3,3540.5,1.9131761]
[1641429849991,8.26510295,3541.3,3540.5,1.9131761]
[1641429850191,9.76500295,3541.3,3541.1,0.84031392]
[1641429850391,0.229991,3541.2,3541.1,0.84031392]
[1641429851091,0.229991,3541.2,3541.1,0.3496593]
[1641429852099,13.919891,3541.2,3541.1,5.93e-05]
[1641429852592,13.919891,3541.2,3541.1,1.0000593]
[1641429852793,13.919891,3541.2,3540.5,1.9131761]
[1641429852993,1.862285,3541.2,3540.5,1.9131761]
[1641429853395,1.99397553,3541.2,3540.5,1.9131761]
[1641429853596,1.0688034,3541.2,3540.5,1.9131761]
[1641429854197,4.39057995,3540.8,3540.5,1.9131761]
[1641429854397,4.39057995,3540.8,3540.6,0.076609]
[1641429855602,3.99132528,3540.7,3540.6,0.076609]
[1641429856600,3.99132528,3540.7,3540.5,1.9131761]
[1641429856801,0.132394,3540.6,3540.5,1.9131761]
[1641429857203,0.132394,3540.6,3540.5,1.9897851]
[1641429857603,4.39057995,3540.8,3540.7,0.867606]
[1641429857801,4.62057095,3540.8,3540.7,0.867606]
[1641429858003,0.229991,3540.8,3540.7,0.867606]
[1641429858202,4.93014974,3541.2,3540.7,3.31909808]
[1641429858405,4.93014974,3541.2,3541.1,1.5]
[1641429858603,0.29763414,3541.2,3541.1,1.632394]
[1641429858802,0.29763414,3541.2,3541.1,0.132394]
[1641429859003,5.37837574,3541.8,3541.2,0.076609]
[1641429859203,6.97196855,3543.1,3541.7,1.5]
[1641429859403,6.97196855,3543.1,3542.0,1.5]
[1641429859604,6.97196855,3543.1,3542.1,0.132394]
[1641429859804,6.97196855,3543.1,3542.2,0.076609]
[1641429860003,6.97196855,3543.1,3542.2,4.086189]
[1641429860203,5.97597304,3543.2,3542.2,5.08363946]
[1641429861403,5.97597304,3543.2,3542.2,6.49431745]
[1641429861606,5.97597304,3543.2,3542.2,5.08363946]
[1641429861806,30.8032,3543.8,3542.2,5.08363946]
[1641429862004,30.8032,3543.8,3543.2,2.00479]
[1641429862207,2.00479,3544.0,3543.2,2.00479]
[1641429862604,2.00479,3544.0,3543.2,3.00479]
[1641429863206,2.00479,3544.0,3543.2,4.20463642]
[1641429863506,6.800356,3543.8,3543.2,3.30975156]
[1641429864108,1.4999,3543.6,3543.2,2.10990514]
[1641429864806,0.15960208,3543.5,3543.2,2.10990514]
[1641429865009,0.229991,3543.4,3543.2,2.10990514]
[1641429865409,0.15960208,3543.3,3543.2,2.10990514]
[1641429865609,0.15960208,3543.3,3543.2,1.0]
[1641429865809,0.15960208,3543.3,3542.2,2.00479]
[1641429865810,12.19,3543.2,3542.2,2.00479]
[1641429866020,2.00479,3542.5,3541.7,2.00479]
[1641429866212,4.94854489,3542.7,3541.8,0.132394]
[1641429866411,0.15960208,3542.4,3541.8,0.132394]
[1641429866611,6.88522422,3543.7,3541.8,0.132394]
[1641429866612,0.15960208,3542.6,3541.8,0.132394]
[1641429866814,0.15960208,3542.3,3541.8,0.132394]
[1641429867212,0.15960208,3542.2,3541.9,1.0412472]
[1641429867515,0.229991,3542.1,3541.7,2.00479]
[1641429867712,0.15960208,3542.1,3541.7,2.00479]
[1641429867913,0.15960208,3542.0,3541.7,2.00479]
[1641429868113,1.91495681,3541.9,3541.7,2.00479]
[1641429868316,1.91495681,3541.9,3541.8,0.229991]
[1641429869215,2.00479,3542.7,3541.8,0.229991]
[1641429869915,2.00479,3542.7,3542.1,2.00479]
[1641429871416,14.19479,3542.7,3542.1,2.00479]
[1641429871617,1.4999,3542.6,3541.7,2.00479]
[1641429871818,1.4999,3542.3,3541.7,2.00479]
[1641429872419,1.4999,3542.5,3541.7,2.00479]
[1641429872620,1.26658857,3542.6,3541.7,2.00479]
[1641429873621,1.4999,3542.3,3541.7,2.00479]
[1641429874021,1.4999,3542.1,3541.7,2.00479]
[1641429874222,1.4999,3542.3,3541.7,2.00479]
[1641429874623,1.4999,3542.3,3541.2,2.00479]
[1641429875022,1.4999,3542.1,3541.2,2.00479]
[1641429875425,1.4999,3542.2,3541.2,2.00479]
[1641429875623,2.3942883,3541.3,3541.2,2.00479]
[1641429875823,2.3942883,3541.3,3541.2,2.234781]
[1641429876925,2.3942883,3541.3,3540.9,1.09648799]
[1641429878429,2.3942883,3541.2,3540.9,1.09648799]
[1641429879440,2.3942883,3541.2,3541.0,0.229991]
[1641429879639,2.3942883,3541.2,3540.9,1.09648799]
[1641429879840,14.5842883,3541.2,3540.6,0.95524512]
[1641429880041,1.137184,3541.1,3540.6,0.95524512]
[1641429880542,1.137184,3541.1,3540.3,4.47486235]
[1641429880741,1.137184,3541.1,3540.3,3.20598381]
[1641429880940,2.00479,3541.5,3540.4,1.632394]
[1641429881340,2.00479,3541.5,3540.4,0.132394]
[1641429881539,2.00479,3541.5,3540.4,1.632394]
[1641429881741,2.00479,3541.5,3540.4,0.132394]
[1641429881941,2.00479,3541.5,3540.8,2.00479]
[1641429882143,3.9077739,3541.5,3540.8,2.00479]
[1641429882743,3.9077739,3541.5,3540.9,0.94756703]
[1641429882941,1.9029839,3541.5,3541.0,0.132394]
[1641429883342,1.9029839,3541.5,3541.0,1.54353979]
[1641429883542,1.9029839,3541.5,3541.0,0.132394]
[1641429883742,3.3279181,3542.0,3541.0,0.132394]
[1641429883942,1.3231281,3542.0,3541.6,2.00479]
[1641429884146,0.15963878,3541.9,3541.6,2.00479]
[1641429884743,0.15963878,3541.9,3541.7,0.229991]
[1641429884944,0.15963878,3541.9,3541.6,2.00479]
[1641429886647,0.15963878,3541.9,3541.7,0.229991]
[1641429886845,3.35209868,3541.9,3541.6,2.00479]
[1641429887248,0.15963878,3541.8,3541.6,2.00479]
[1641429888746,0.15963878,3541.8,3541.7,0.229991]
[1641429889445,0.15963878,3541.8,3541.7,0.362385]
[1641429889646,2.79359868,3541.9,3541.7,0.362385]
[1641429889847,2.79359868,3542.0,3541.7,0.362385]
[1641429891051,2.98518951,3542.4,3541.7,0.362385]
[1641429891052,2.79359868,3542.2,3541.7,0.362385]
[1641429891248,0.15961585,3541.9,3541.7,0.362385]
[1641429891448,0.15961585,3542.1,3541.7,0.362385]
[1641429891650,2.79359868,3542.2,3542.0,1.0]
[1641429891849,2.79359868,3542.2,3542.1,0.229991]
[1641429892052,2.79359868,3542.2,3542.1,1.28305187]
[1641429892251,4.79838868,3542.4,3542.1,1.28305187]
[1641429892750,4.79838868,3542.4,3542.2,0.229991]
[1641429893751,4.79838868,3542.4,3542.3,0.132394]
[1641429893752,2.00479,3542.4,3542.3,0.132394]
[1641429894753,2.10452827,3542.4,3542.3,0.132394]
[1641429894952,2.10452827,3542.4,3542.0,1.0]
[1641429895755,6.09500878,3542.4,3542.0,1.0]
[1641429896757,5.09500878,3542.4,3542.0,1.0]
[1641429896958,3.19193386,3542.1,3542.0,1.0]
[1641429897458,3.19193386,3542.1,3542.0,1.229991]
[1641429898059,3.19193386,3542.1,3542.0,1.0]
[1641429899659,16.88183386,3542.1,3542.0,0.0001]
[1641429899860,1.11907201,3541.9,3541.5,1.0]
[1641429900060,2.00479,3541.8,3541.5,1.0]
[1641429901764,1.00479,3541.8,3541.5,1.0]
[1641429901962,0.09973827,3541.7,3541.6,0.229991]
[1641429902663,0.09973827,3541.7,3541.5,1.0]
[1641429902863,4.19672386,3541.8,3541.5,1.229991]
[1641429903063,4.19672386,3541.8,3541.5,1.0]
[1641429903263,1.4999,3541.6,3541.0,2.96003512]
[1641429903465,1.4999,3541.4,3541.0,2.61403512]
[1641429903863,0.09973827,3541.7,3541.0,1.65879]
[1641429905366,2.28641,3541.7,3541.0,1.65879]
[1641429905766,3.99048051,3541.5,3541.0,1.65879]
[1641429905966,3.19193386,3541.2,3541.0,1.65879]
[1641429906766,2.75043386,3541.2,3541.0,1.65879]
[1641429906968,0.15966195,3541.1,3541.0,1.65879]
[1641429907168,0.15966195,3541.1,3541.0,1.888781]
[1641429907368,0.15966195,3541.1,3541.0,1.65879]
[1641429908369,2.65371381,3541.1,3541.0,1.65879]
[1641429909171,0.25940022,3541.1,3541.0,1.65879]
[1641429909970,0.25940022,3541.1,3540.4,0.95524512]
[1641429910170,4.00958,3540.5,3540.4,0.95524512]
[1641429910473,4.00958,3540.5,3540.3,0.94999449]
[1641429910671,13.6899,3540.4,3540.1,1.26887854]
[1641429910871,1.4999,3540.2,3539.8,1.587809]
[1641429911072,1.4999,3540.0,3539.8,1.587809]
[1641429911276,13.6899,3540.0,3539.5,1.88921185]
[1641429911471,13.6899,3540.0,3539.2,2.00479]
[1641429911472,12.19,3540.0,3539.2,2.00479]
[1641429911674,1.65956195,3539.9,3539.2,2.00479]
[1641429911874,1.4999,3539.5,3539.2,2.00479]
[1641429912074,1.4999,3539.3,3538.9,2.00479]
[1641429912374,1.52824215,3539.6,3538.6,0.68150072]
[1641429912375,4.37512677,3539.0,3538.6,0.68150072]
[1641429912573,1.4999,3538.7,3537.8,3.98014495]
[1641429912775,1.4999,3538.4,3537.8,3.98014495]
[1641429912974,1.4999,3538.0,3537.8,3.98014495]
[1641429913174,1.4999,3538.0,3537.6,4.30982666]
[1641429913375,1.4999,3537.7,3537.6,3.74902666]
[1641429913573,1.413104,3538.1,3537.6,3.74702666]
[1641429913775,0.15966195,3537.7,3537.6,3.74702666]
[1641429913974,1.4999,3537.8,3537.6,3.74702666]
[1641429914175,4.16924195,3537.7,3537.6,3.74702666]
[1641429914376,4.16924195,3537.7,3537.6,3.35252666]
[1641429914575,5.66914195,3537.7,3537.6,3.35252666]
[1641429914774,17.85914195,3537.7,3537.3,0.79859378]
[1641429914975,19.27256552,3537.7,3536.8,3.18073241]
[1641429915178,1.4999,3536.9,3536.8,3.18073241]
[1641429915375,15.10351738,3536.9,3536.2,3.35252666]
[1641429915574,1.4999,3536.5,3536.2,3.35252666]
[1641429915775,1.4999,3536.3,3536.2,3.35252666]
[1641429915976,12.19,3536.4,3536.2,3.35252666]
[1641429916176,16.19958,3536.3,3535.7,4.76097863]
[1641429916381,16.19958,3536.3,3535.8,0.132394]
[1641429916578,2.00479,3536.3,3535.8,0.132394]
[1641429916780,0.09973827,3537.6,3535.8,0.132394]
[1641429916781,2.39430323,3537.5,3535.8,0.132394]
[1641429916981,1.4999,3537.4,3535.8,0.132394]
[1641429917181,1.4999,3536.8,3535.7,2.7549848]
[1641429917379,1.41366334,3536.7,3535.7,2.7549848]
[1641429917579,3.07339378,3536.7,3535.7,2.7549848]
[1641429917779,1.4138852,3536.1,3535.7,2.7549848]
[1641429918180,4.00958,3535.8,3535.7,2.7549848]
[1641429918379,4.00958,3535.8,3534.6,0.59923667]
[1641429920085,5.50948,3534.7,3534.6,0.59923667]
[1641429920488,6.92392716,3534.7,3534.6,0.59923667]
[1641429920789,19.11392716,3534.7,3534.6,0.59923667]
[1641429921191,7.08385126,3534.7,3534.6,0.59923667]
[1641429921391,17.77395126,3534.7,3534.6,0.59923667]
[1641429921596,5.58395126,3534.7,3534.6,0.59923667]
[1641429921991,5.68368953,3534.7,3534.0,1.59763196]
[1641429922191,2.00479,3534.1,3534.0,1.59763196]
[1641429922391,2.00479,3534.1,3534.0,1.82762296]
[1641429922790,0.09973827,3534.7,3534.0,1.82762296]
[1641429922994,0.09973827,3534.7,3534.1,0.132394]
[1641429923792,1.91629449,3535.0,3534.1,0.132394]
[1641429923993,1.2782116,3534.5,3534.1,0.132394]
[1641429924196,1.2782116,3534.5,3534.0,4.20165863]
[1641429924395,1.2782116,3534.5,3534.1,0.132394]
[1641429924995,1.2782116,3534.4,3534.1,0.73163067]
[1641429925192,1.2782116,3534.4,3534.2,1.05737625]
[1641429925593,1.2782116,3534.4,3534.3,0.132394]
[1641429926195,1.50794754,3534.7,3534.3,0.132394]
[1641429927597,1.50794754,3534.7,3534.4,0.59923667]
[1641429927796,1.50794754,3534.7,3534.5,0.229991]
[1641429928197,1.50794754,3534.7,3534.4,0.59923667]
[1641429928696,1.50794754,3534.7,3534.6,0.59923667]
[1641429928897,0.22973594,3534.7,3534.6,1.87648986]
[1641429929696,0.22973594,3534.7,3534.6,2.10648086]
[1641429929895,0.22973594,3534.7,3534.6,1.87648986]
[1641429930096,0.22973594,3534.7,3534.6,1.27725319]
[1641429930698,0.22973594,3534.7,3534.6,1.50724419]
[1641429930897,0.22973594,3534.7,3534.6,1.27725319]
[1641429931100,3.2830016,3534.8,3534.6,1.27725319]
[1641429931497,3.2830016,3534.8,3534.7,0.229991]
[1641429931498,2.00479,3534.8,3534.7,0.229991]
[1641429931699,2.00479,3534.8,3534.3,0.132394]
[1641429932401,5.9004183,3534.8,3534.3,0.132394]
[1641429934703,5.8946703,3535.6,3534.6,1.5]
[1641429936405,5.8946703,3535.6,3535.2,2.00479]
[1641429936606,5.8946703,3535.6,3535.2,3.51556128]
[1641429936805,5.8946703,3535.6,3535.2,1.51077128]
[1641429938306,2.00479,3536.0,3535.4,2.00479]
[1641429938506,90.0478,3536.8,3535.5,0.132394]
[1641429938707,3.78160307,3536.9,3535.5,0.132394]
[1641429938906,0.15984583,3536.7,3535.5,0.132394]
[1641429939205,3.78160307,3536.9,3535.5,0.132394]
[1641429939407,1.4999,3536.8,3535.5,0.132394]
[1641429939606,2.0098599,3536.4,3535.5,0.132394]
[1641429940208,1.418,3536.3,3535.5,0.132394]
[1641429940407,2.00479,3536.0,3535.5,0.132394]
[1641429940806,1.65669,3536.0,3534.8,2.00479]
[1641429941007,1.4999,3535.6,3529.3,26.44142864]
[1641429941308,1.4999,3535.6,3533.3,1.5]
[1641429941511,1.81218223,3535.2,3533.3,1.5]
[1641429941906,1.81218223,3535.2,3533.6,1.5]
[1641429942311,1.81218223,3535.2,3533.5,1.41414913]
[1641429942507,2.00479,3534.8,3534.3,1.5]
[1641429942707,2.00479,3534.8,3534.4,0.132394]
[1641429943914,2.00479,3534.8,3534.5,1.06373819]
[1641429944112,2.00479,3534.8,3534.6,0.362385]
[1641429944713,2.00479,3534.8,3534.6,0.132394]
[1641429946018,2.00479,3534.8,3534.5,1.06373819]
[1641429946415,2.00479,3534.8,3534.0,2.00479]
[1641429946615,1.48391079,3534.7,3533.7,2.00479]
[1641429947314,1.48391079,3534.7,3533.7,3.50479]
[1641429947516,1.48391079,3534.7,3533.7,2.00479]
[1641429947815,1.48391079,3534.7,3533.7,2.9458181]
[1641429948514,1.81447278,3534.7,3533.7,2.9458181]
[1641429949816,0.81447278,3534.7,3533.7,2.9458181]
[1641429950021,2.00479,3534.8,3533.7,2.9458181]
[1641429951619,14.19479,3534.8,3533.7,2.9458181]
[1641429952020,14.19479,3534.8,3533.7,4.4458181]
[1641429952422,14.19479,3534.8,3533.7,2.9458181]
[1641429952621,14.19479,3534.8,3533.7,4.4458181]
[1641429954724,14.19479,3534.8,3533.7,2.00479]
[1641429954725,1.4999,3534.5,3533.7,2.00479]
[1641429954925,13.6899,3534.5,3533.7,2.00479]
[1641429955226,13.60455721,3534.5,3533.7,2.00479]
[1641429955429,3.87654002,3534.0,3533.7,2.00479]
[1641429958736,1.41482939,3533.8,3533.7,2.00479]
[1641429958937,5.65955344,3533.9,3533.7,2.00479]
[1641429959838,4.65955344,3533.9,3533.7,2.00479]
[1641429960138,3.87654002,3534.0,3533.7,2.00479]
[1641429962844,12.19,3533.9,3533.7,2.00479]
[1641429964348,12.19,3534.3,3533.8,0.229991]
[1641429964547,12.19,3534.3,3533.7,2.00479]
[1641429964748,1.4999,3534.2,3534.0,0.8367]
[1641429964949,12.19,3534.1,3532.1,96.0046]
[1641429965149,12.19,3534.1,3531.7,1.41485942]
[1641429965150,12.19,3533.6,3531.7,1.41485942]
[1641429965349,17.32161461,3532.8,3531.5,31.8212]
[1641429965553,4.98964821,3532.4,3531.5,31.8212]
[1641429965752,4.98964821,3532.4,3531.1,1.08102147]
[1641429965954,17.17964821,3532.4,3531.1,1.08102147]
[1641429966352,17.17964821,3532.4,3530.5,30.8279]
[1641429966553,17.17964821,3532.4,3530.5,1.5]
[1641429966753,1.41540613,3532.1,3531.4,2.00479]
[1641429967152,14.19479,3532.2,3531.4,2.00479]
[1641429967352,1.41540613,3532.1,3531.4,2.00479]
[1641429967555,2.91530613,3532.1,3531.4,2.00479]
[1641429967755,2.91530613,3532.1,3531.0,2.00479]
[1641429967756,16.30784702,3532.0,3531.0,2.00479]
[1641429967952,3.44600871,3531.5,3531.0,2.00479]
[1641429968653,15.63600871,3531.5,3531.0,2.00479]
[1641429968855,1.4157067,3531.4,3531.0,2.00479]
[1641429969053,1.4157067,3531.4,3530.6,2.00479]
[1641429969054,12.29258989,3531.0,3530.6,2.00479]
[1641429969254,12.19,3531.0,3530.6,2.00479]
[1641429969855,12.19,3531.0,3530.0,1.10615338]
[1641429970657,2.00479,3530.5,3530.0,1.10615338]
[1641429972655,2.00479,3530.5,3530.0,1.23854738]
[1641429972856,2.00479,3530.5,3530.0,1.10615338]
[1641429973958,12.19,3530.4,3530.0,1.10615338]
[1641429974159,2.00479,3530.5,3530.0,1.10615338]
[1641429975661,2.00479,3530.5,3529.9,0.132394]
[1641429976061,2.00479,3530.5,3530.0,0.71307832]
[1641429977661,1.88880416,3530.2,3530.0,0.71307832]
[1641429978462,2.00479,3530.5,3530.0,0.71307832]
[1641429978661,2.00479,3530.5,3530.1,0.132394]
[1641429978864,2.00479,3530.5,3530.0,0.71307832]
[1641429979261,12.19,3530.4,3529.7,2.00479]
[1641429981966,12.19,3530.4,3529.8,0.96046102]
[1641429983265,12.19,3530.4,3529.7,2.00479]
[1641429983867,4.58985547,3529.9,3529.7,2.00479]
[1641429985569,4.58985547,3529.9,3529.3,2.00479]
[1641429985768,15.76421677,3529.4,3528.4,32.334]
[1641429985969,3.57467942,3529.0,3527.8,32.60695235]
[1641429986170,3.57467942,3529.0,3527.4,1.27725319]
[1641429986370,3.57467942,3529.0,3528.3,0.96070469]
[1641429986571,3.57467942,3529.0,3527.6,0.93792904]
[1641429986770,3.57467942,3529.0,3528.3,2.00479]
[1641429986970,15.76467942,3529.0,3528.3,2.00479]
[1641429988071,2.44316453,3528.6,3528.3,2.00479]
[1641429989571,14.63316453,3528.6,3528.3,2.00479]
[1641429990773,2.44316453,3528.6,3528.5,1.91715836]
[1641429991073,0.93778449,3528.8,3528.5,3.41715836]
[1641429991277,0.93778449,3528.8,3528.7,1.5]
[1641429991472,0.93778449,3528.8,3528.6,0.132394]
[1641429991674,0.93778449,3528.8,3528.7,0.229991]
[1641429992074,2.93129355,3529.2,3528.7,0.229991]
[1641429992075,3.86907804,3529.2,3528.7,0.229991]
[1641429992274,3.86907804,3529.2,3528.8,0.132394]
[1641429992776,0.93778449,3529.2,3529.0,2.00479]
[1641429992975,0.93778449,3529.2,3529.1,1.44620721]
[1641429993178,0.93778449,3529.2,3529.1,1.21621621]
[1641429993379,0.93778449,3529.2,3529.1,2.81710682]
[1641429993778,0.93778449,3529.2,3529.1,3.04709782]
[1641429993979,0.93778449,3529.2,3529.1,2.81710682]
[1641429994577,0.93778449,3529.2,3529.1,3.04709782]
[1641429994777,0.93778449,3529.2,3529.1,4.54709782]
[1641429994978,0.93778449,3529.2,3529.1,1.44620721]
[1641429995386,0.93778449,3529.4,3529.1,2.04660768]
[1641429995780,0.93778449,3529.4,3529.2,0.132394]
[1641429995981,0.93778449,3529.4,3529.3,0.229991]
[1641429996982,0.93778449,3529.6,3529.3,2.15105973]
[1641429997382,0.93778449,3529.6,3529.4,0.132394]
[1641429997583,0.93778449,3529.6,3529.5,0.229991]
[1641429998084,0.93778449,3529.8,3529.5,0.229991]
[1641429998285,0.93778449,3529.8,3529.4,2.5214692]
[1641429998886,0.93778449,3529.8,3529.5,0.132394]
[1641429999084,0.93778449,3529.8,3529.6,0.229991]
[1641429999284,0.93778449,3529.8,3529.7,1.60063486]
[1641429999485,0.93778449,3529.8,3529.7,1.73302886]
[1641430001185,0.93778449,3529.8,3529.7,2.33342933]
[1641430001986,0.93778449,3529.8,3529.7,0.73279447]
[1641430002991,0.93778449,3529.8,3529.7,1.99152536]
[1641430003190,0.93778449,3529.9,3529.7,1.99152536]
[1641430003391,0.93778449,3529.9,3529.8,0.229991]
[1641430003791,0.93778449,3529.9,3529.8,1.729991]
[1641430003990,0.80030948,3530.6,3529.8,2.82284808]
[1641430004194,2.39430323,3531.0,3530.5,1.5]
[1641430004393,3.99310524,3531.5,3530.6,1.5]
[1641430004595,1.26104899,3530.8,3530.6,1.632394]
[1641430004791,1.26104899,3530.8,3530.7,4.239571]
[1641430004992,1.89157348,3531.3,3530.7,4.239571]
[1641430005192,1.89157348,3531.3,3530.8,0.132394]
[1641430006094,1.89157348,3531.3,3530.9,0.72969237]
[1641430006294,1.89157348,3531.3,3531.0,0.132394]
[1641430006493,1.89157348,3531.3,3531.1,0.229991]
[1641430006695,3.99310524,3532.1,3531.1,0.229991]
[1641430006893,3.99310524,3532.1,3531.6,2.00479]
[1641430007095,6.3962982,3532.4,3531.6,2.137184]
[1641430007394,2.00479,3532.4,3531.6,2.137184]
[1641430007594,0.16003144,3532.3,3531.6,2.137184]
[1641430007995,0.16003144,3532.3,3531.7,1.22547609]
[1641430009995,12.35003144,3532.3,3531.7,1.22547609]
[1641430010198,0.84939468,3532.0,3530.7,2.00479]
[1641430010603,0.16003144,3531.9,3530.7,2.00479]
[1641430010797,2.00479,3531.7,3530.7,2.00479]
[1641430011197,2.00479,3531.7,3530.7,2.96362784]
[1641430012603,1.41573877,3531.3,3530.7,2.00479]
[1641430012799,0.84952804,3531.4,3530.7,2.00479]
[1641430013001,0.84952804,3531.4,3530.2,1.59496395]
[1641430013002,0.16007106,3531.2,3530.2,1.59496395]
[1641430013199,0.16007106,3531.3,3530.2,1.59496395]
[1641430013399,0.84952804,3531.4,3530.2,1.59496395]
[1641430014001,0.84968391,3530.8,3530.2,1.59496395]
[1641430014802,0.84968391,3530.8,3530.1,2.00479]
[1641430016702,0.84968391,3530.8,3530.1,2.137184]
[1641430016904,1.25921623,3531.1,3530.4,1.5]
[1641430017304,1.25921623,3531.1,3530.5,0.132394]
[1641430018202,1.25921623,3531.6,3530.5,0.132394]
[1641430018402,1.29164047,3531.2,3530.5,0.132394]
[1641430018703,2.78415155,3531.6,3530.6,1.5]
[1641430018903,2.78415155,3531.6,3531.4,2.00479]
[1641430019106,1.25921623,3531.6,3531.4,2.234781]
[1641430019404,1.25921623,3531.6,3531.4,2.00479]
[1641430019803,1.25921623,3531.7,3531.4,2.00479]
[1641430020004,1.25921623,3531.7,3531.5,1.46776848]
[1641430021106,14.48271685,3532.1,3531.5,1.46776848]
[1641430021307,14.48271685,3532.1,3531.4,2.00479]
[1641430021505,0.16005423,3532.0,3531.4,0.97108194]
[1641430022505,1.41552233,3531.9,3531.4,0.97108194]
[1641430022908,1.25921623,3531.6,3531.4,0.97108194]
[1641430024606,1.88953542,3532.1,3531.4,0.97108194]
[1641430024607,1.25921623,3531.7,3531.4,0.97108194]
[1641430025406,1.25921623,3531.7,3531.4,1.10347594]
[1641430025608,1.25921623,3531.7,3531.5,0.229991]
[1641430025809,1.25921623,3531.8,3531.5,0.229991]
[1641430026508,1.25921623,3531.8,3531.5,0.362385]
[1641430027310,2.10862105,3531.9,3531.5,0.362385]
[1641430028314,0.50125125,3531.8,3531.5,0.362385]
[1641430028511,0.50125125,3531.8,3531.7,1.5]
[1641430028712,1.88953542,3532.4,3531.7,1.862385]
[1641430028911,1.88953542,3532.4,3532.3,2.00479]
[1641430029312,1.88953542,3532.4,3532.3,2.137184]
[1641430029515,1.88953542,3532.4,3532.3,3.58436453]
[1641430030116,1.07433542,3532.4,3532.3,3.58436453]
[1641430030317,4.22343917,3533.0,3532.3,3.58436453]
[1641430030516,1.07433542,3533.0,3532.3,3.58436453]
[1641430030916,1.07433542,3533.0,3532.9,2.00479]
[1641430031319,1.07433542,3533.0,3532.9,2.234781]
[1641430031517,1.07433542,3533.0,3532.9,2.00479]
[1641430032217,2.36182781,3533.3,3532.9,2.234781]
[1641430033820,2.36182781,3533.3,3533.0,0.132394]
[1641430034019,2.36182781,3533.3,3533.1,0.229991]
[1641430034222,2.36182781,3533.3,3533.2,1.632394]
[1641430034621,2.36182781,3533.4,3533.2,1.632394]
[1641430034819,2.36182781,3533.4,3533.3,0.229991]
[1641430035020,2.36182781,3533.4,3533.3,2.234781]
[1641430035421,2.36182781,3533.4,3533.3,3.734781]
[1641430036623,1.00062781,3533.4,3533.3,17.33877216]
[1641430036828,3.14910375,3533.7,3533.3,17.47116616]
[1641430037024,3.14910375,3533.7,3533.6,1.5]